bitfinex/quotes_BTCUSD_20241124
["timestamp","ask_amount","ask_price","bid_price","bid_amount"]
[1732455487700,0.02465725,97334.0,97330.0,0.07192]
[1732455487919,0.02465725,97334.0,97330.0,0.00290917]
[1732455488433,0.24735107,97342.0,97316.0,0.12153]
[1732455488434,0.205508,97320.0,97316.0,0.09059705]
[1732455488705,0.02465725,97312.0,97300.0,0.16253905]
[1732455488927,0.02465725,97312.0,97294.0,0.1811941]
[1732455488928,0.02465725,97302.0,97294.0,0.0756]
[1732455489161,0.02465725,97302.0,97299.0,0.071942]
[1732455489377,0.02465725,97302.0,97295.0,0.071946]
[1732455489600,0.02465725,97302.0,97294.0,0.0756]
[1732455489601,0.02465725,97302.0,97296.0,0.00102767]
[1732455489814,0.205514,97317.0,97296.0,0.00102767]
[1732455489815,0.02465725,97312.0,97296.0,0.00102767]
[1732455490078,0.02563805,97315.0,97313.0,0.071932]
[1732455490302,0.02563805,97315.0,97297.0,0.00102767]
[1732455490303,0.0009808,97315.0,97314.0,0.2211595]
[1732455490568,0.02465725,97331.0,97329.0,0.07192]
[1732455490791,0.12739925,97331.0,97316.0,0.02402738]
[1732455491013,0.02465725,97331.0,97320.0,0.071927]
[1732455491246,0.02465725,97331.0,97321.0,0.023]
[1732455491475,0.02465725,97338.0,97333.0,0.071917]
[1732455491692,0.102733,97340.0,97323.0,0.14385]
[1732455491693,0.02465725,97340.0,97323.0,0.14385]
[1732455491925,0.02465725,97340.0,97321.0,0.023]
[1732455491926,0.02465725,97337.0,97334.0,0.00263084]
[1732455492146,0.02465725,97337.0,97333.0,0.071917]
[1732455492365,0.02465725,97337.0,97334.0,0.00263015]
[1732455492716,0.02465725,97336.0,97334.0,0.00263015]
[1732455492720,0.02465725,97336.0,97335.0,0.071916]
[1732455492933,0.02465725,97336.0,97335.0,0.00262877]
[1732455493145,0.02465725,97336.0,97331.0,0.071919]
[1732455493368,0.02465725,97336.0,97332.0,0.07454884]
[1732455493579,0.02465725,97336.0,97332.0,0.00263084]
[1732455495520,0.02465725,97336.0,97333.0,0.071917]
[1732455495762,0.02465725,97336.0,97334.0,0.00262946]
[1732455496208,0.02465725,97336.0,97331.0,0.143838]
[1732455496428,0.02465725,97336.0,97335.0,0.00262877]
[1732455496661,0.12739425,97336.0,97330.0,0.07192]
[1732455496889,0.12739425,97336.0,97335.0,0.00262877]
[1732455497114,0.205475,97335.0,97324.0,0.023]
[1732455497331,0.02465725,97336.0,97327.0,0.071922]
[1732455497542,0.02465725,97336.0,97328.0,0.0026336]
[1732455497775,0.12739425,97336.0,97330.0,0.07192]
[1732455498001,0.0424762,97346.0,97330.0,0.07192]
[1732455498002,0.000998,97347.0,97331.0,0.00263153]
[1732455498239,0.02465725,97344.0,97332.0,0.00102727]
[1732455498445,0.02465725,97344.0,97333.0,0.071917]
[1732455498659,0.10273,97342.0,97335.0,0.071916]
[1732455498907,0.02465725,97344.0,97340.0,0.071912]
[1732455499160,0.02465725,97344.0,97335.0,0.00102726]
[1732455499161,0.02465725,97344.0,97341.0,0.07453847]
[1732455499399,0.10273,97342.0,97341.0,0.00262747]
[1732455499822,0.102732,97340.0,97333.0,0.094917]
[1732455500057,0.02465725,97342.0,97332.0,0.071918]
[1732455500296,0.102738,97335.0,97334.0,0.00262954]
[1732455500506,0.02465725,97342.0,97329.0,0.023]
[1732455500507,0.205465,97340.0,97329.0,0.023]
[1732455500737,0.102739,97334.0,97331.0,0.023]
[1732455500946,0.102737,97336.0,97332.0,0.00262678]
[1732455501195,0.02465725,97342.0,97340.0,0.071912]
[1732455501430,0.02465725,97350.0,97341.0,0.00262609]
[1732455501672,0.0009934,97351.0,97342.0,0.071911]
[1732455501887,0.02565065,97351.0,97347.0,0.071907]
[1732455502129,0.02465725,97351.0,97348.0,0.07449296]
[1732455502337,0.02465725,97351.0,97350.0,0.071905]
[1732455502569,0.0017164,97354.0,97353.0,0.071903]
[1732455502798,0.0017164,97354.0,97353.0,0.07551566]
[1732455503347,0.0017164,97354.0,97353.0,0.15871566]
[1732455503808,0.0009891,97367.0,97366.0,0.071893]
[1732455504090,0.02465725,97371.0,97366.0,0.0743269]
[1732455504290,0.12735725,97371.0,97366.0,0.0024339]
[1732455504513,0.02465725,97371.0,97364.0,0.071895]
[1732455504759,0.02465725,97366.0,97365.0,0.00235085]
[1732455504988,0.02465725,97366.0,97350.0,0.071905]
[1732455505252,0.102717,97354.0,97351.0,0.00244424]
[1732455505545,0.12737725,97352.0,97341.0,0.15]
[1732455505800,0.02465725,97352.0,97344.0,0.071909]
[1732455506048,0.02465725,97352.0,97345.0,0.22433507]
[1732455506049,0.12737725,97352.0,97345.0,0.22433507]
[1732455506317,0.102726,97346.0,97345.0,0.15242607]
[1732455506580,0.02465725,97337.0,97321.0,0.2763]
[1732455506835,0.102732,97341.0,97333.0,0.071917]
[1732455507066,0.205454,97345.0,97335.0,0.071916]
[1732455507305,0.02465725,97346.0,97335.0,0.071916]
[1732455507306,0.102731,97342.0,97335.0,0.071916]
[1732455507557,0.102728,97344.0,97338.0,0.071913]
[1732455507798,0.102728,97345.0,97338.0,0.071913]
[1732455508053,0.102728,97345.0,97338.0,0.143827]
[1732455508319,0.02465725,97350.0,97339.0,0.00102724]
[1732455508573,0.02465725,97350.0,97329.0,0.2]
[1732455508574,0.205425,97360.0,97342.0,0.071911]
[1732455508807,0.02465725,97354.0,97343.0,0.15327136]
[1732455509057,0.02465725,97354.0,97343.0,0.15]
[1732455509303,0.102722,97350.0,97344.0,0.00102713]
[1732455509527,0.102719,97353.0,97343.0,0.15]
[1732455509767,0.102719,97353.0,97347.0,0.071907]
[1732455510014,0.02465725,97354.0,97343.0,0.15]
[1732455510241,0.102721,97351.0,97344.0,0.071909]
[1732455510461,0.102728,97344.0,97343.0,0.15]
[1732455510692,0.205465,97340.0,97326.0,0.15]
[1732455510927,0.102732,97341.0,97328.0,0.071921]
[1732455511150,0.02465725,97343.0,97332.0,0.071918]
[1732455511379,0.102746,97327.0,97326.0,0.15]
[1732455512314,0.02465725,97334.0,97316.0,0.0763]
[1732455512753,0.12739625,97334.0,97327.0,0.071921]
[1732455513023,0.12739625,97334.0,97328.0,0.071921]
[1732455513243,0.02465725,97334.0,97330.0,0.071919]
[1732455513477,0.02465725,97334.0,97328.0,0.071921]
[1732455514183,0.12739625,97334.0,97328.0,0.071921]
[1732455514397,0.23013625,97334.0,97326.0,0.00102736]
[1732455514634,0.102747,97326.0,97323.0,0.15]
[1732455514856,0.102747,97327.0,97323.0,0.15]
[1732455515083,0.205484,97331.0,97323.0,0.15]
[1732455515290,0.02465725,97334.0,97323.0,0.15]
[1732455515291,0.205486,97330.0,97323.0,0.15]
[1732455515533,0.205486,97330.0,97320.0,0.15]
[1732455515769,0.02465725,97329.0,97315.0,0.221931]
[1732455516015,0.205494,97326.0,97317.0,0.071929]
[1732455516249,0.02465725,97329.0,97315.0,0.15]
[1732455516686,0.02465725,97329.0,97317.0,0.071929]
[1732455516918,0.02465725,97329.0,97315.0,0.15]
[1732455517363,0.102749,97325.0,97317.0,0.15]
[1732455517587,0.02465725,97329.0,97315.0,0.15]
[1732455517810,0.10275,97323.0,97318.0,0.071928]
[1732455518719,0.102752,97322.0,97317.0,0.15]
[1732455518946,0.205494,97326.0,97317.0,0.221929]
[1732455519171,0.102752,97322.0,97317.0,0.071929]
[1732455519658,0.102752,97322.0,97318.0,0.15]
[1732455519905,0.23014525,97329.0,97319.0,0.15]
[1732455519906,0.102748,97326.0,97319.0,0.15]
[1732455520119,0.205491,97328.0,97315.0,0.15]
[1732455520120,0.20549,97328.0,97317.0,0.071929]
[1732455520328,0.102748,97326.0,97320.0,0.071927]
[1732455520785,0.02465725,97329.0,97319.0,0.071928]
[1732455520786,0.102749,97325.0,97319.0,0.071928]
[1732455521209,0.102752,97322.0,97318.0,0.15]
[1732455521464,0.102758,97316.0,97314.0,0.15]
[1732455521699,0.02465725,97329.0,97314.0,0.15]
[1732455521949,0.0766,97331.0,97303.0,0.09004992]
[1732455521950,0.02465725,97320.0,97303.0,0.09004992]
[1732455522193,0.02465725,97320.0,97307.0,0.071936]
[1732455522427,0.02465725,97320.0,97301.0,0.2]
[1732455522642,0.10276,97314.0,97308.0,0.071936]
[1732455522847,0.10276,97314.0,97308.0,0.143872]
[1732455523086,0.10276,97314.0,97308.0,0.071936]
[1732455523293,0.205516,97316.0,97309.0,0.071935]
[1732455523294,0.102758,97316.0,97309.0,0.071935]
[1732455523510,0.102764,97310.0,97309.0,0.15]
[1732455523716,0.102762,97312.0,97309.0,0.15]
[1732455524655,0.205509,97319.0,97301.0,0.071941]
[1732455524854,0.102765,97309.0,97302.0,0.07194]
[1732455525069,0.205526,97312.0,97302.0,0.07194]
[1732455525070,0.205526,97312.0,97303.0,0.15]
[1732455525267,0.102764,97310.0,97303.0,0.15]
[1732455525472,0.102764,97310.0,97303.0,0.22194]
[1732455525683,0.205526,97312.0,97303.0,0.15]
[1732455526091,0.04235996,97319.0,97300.0,0.15]
[1732455526298,0.02465725,97320.0,97300.0,0.15]
[1732455526510,0.102765,97310.0,97301.0,0.071941]
[1732455526806,0.102763,97311.0,97303.0,0.071939]
[1732455527012,0.102754,97319.0,97304.0,0.15]
[1732455527215,0.06660874,97320.0,97304.0,0.15]
[1732455527433,0.102766,97309.0,97304.0,0.15]
[1732455527658,0.0008577,97336.0,97298.0,0.0008577]
[1732455527659,0.02465725,97311.0,97298.0,0.09090762]
[1732455527863,0.205528,97310.0,97298.0,0.0008577]
[1732455528084,0.102775,97299.0,97298.0,0.0008577]
[1732455529130,0.102773,97302.0,97298.0,0.0008577]
[1732455529584,0.205537,97306.0,97298.0,0.0008577]
[1732455529798,0.102775,97300.0,97298.0,0.0008577]
[1732455530221,0.205539,97305.0,97298.0,0.0008577]
[1732455530433,0.04209737,97306.0,97298.0,0.0728007]
[1732455530693,0.04209737,97306.0,97298.0,0.00188536]
[1732455530900,0.205541,97304.0,97298.0,0.00188536]
[1732455531113,0.102774,97301.0,97298.0,0.0008577]
[1732455531320,0.205537,97306.0,97298.0,0.0008577]
[1732455531537,0.102768,97306.0,97298.0,0.0008577]
[1732455531742,0.24777233,97307.0,97298.0,0.0008577]
[1732455531743,0.102773,97302.0,97298.0,0.0008577]
[1732455531966,0.205541,97304.0,97298.0,0.0008577]
[1732455532184,0.10277,97305.0,97299.0,0.071942]
[1732455532409,0.10277,97304.0,97298.0,0.0008577]
[1732455532620,0.10277,97304.0,97298.0,0.2228007]
[1732455532839,0.20552,97314.0,97303.0,0.07194]
[1732455533059,0.02465725,97316.0,97305.0,0.071938]
[1732455533263,0.205514,97317.0,97306.0,0.00102757]
[1732455533467,0.205514,97317.0,97309.0,0.071935]
[1732455533703,0.205518,97315.0,97307.0,0.00102756]
[1732455533933,0.102767,97307.0,97304.0,0.24089645]
[1732455534138,0.102767,97307.0,97304.0,0.09089645]
[1732455534355,0.102766,97309.0,97304.0,0.09089645]
[1732455534575,0.205522,97313.0,97304.0,0.09089645]
[1732455534778,0.205528,97310.0,97305.0,0.09089645]
[1732455534988,0.205528,97310.0,97304.0,0.09089645]
[1732455534989,0.102766,97308.0,97304.0,0.09089645]
[1732455535198,0.02465725,97316.0,97304.0,0.09089645]
[1732455535619,0.02465725,97316.0,97302.0,0.28634468]
[1732455535620,0.102769,97306.0,97305.0,0.09089645]
[1732455535846,0.102769,97305.0,97304.0,0.09089645]
[1732455536308,0.205528,97310.0,97303.0,0.09089645]
[1732455536543,0.10277,97304.0,97303.0,0.09089645]
[1732455536759,0.102771,97303.0,97302.0,0.15]
[1732455537656,0.12742225,97309.0,97299.0,0.09089645]
[1732455537885,0.102769,97305.0,97299.0,0.09192409]
[1732455538109,0.102768,97306.0,97300.0,0.16276797]
[1732455538353,0.102766,97308.0,97302.0,0.07194]
[1732455538585,0.102769,97306.0,97301.0,0.15]
[1732455538814,0.102769,97305.0,97301.0,0.15]
[1732455539899,0.102768,97307.0,97301.0,0.221941]
[1732455540128,0.102768,97307.0,97300.0,0.09081409]
[1732455540129,0.102771,97304.0,97300.0,0.24081409]
[1732455540558,0.102766,97308.0,97302.0,0.15]
[1732455540804,0.102771,97303.0,97302.0,0.15]
[1732455541709,0.205533,97308.0,97299.0,0.09081409]
[1732455541710,0.02465725,97308.0,97299.0,0.09081409]
[1732455541941,0.23019025,97308.0,97298.0,0.09167179]
[1732455542175,0.102775,97299.0,97298.0,0.09167179]
[1732455542410,0.205535,97307.0,97298.0,0.09167179]
[1732455542630,0.102774,97301.0,97298.0,0.09167179]
[1732455542883,0.205539,97305.0,97298.0,0.09167179]
[1732455543128,0.102774,97301.0,97298.0,0.09167179]
[1732455543857,0.102771,97304.0,97298.0,0.09167179]
[1732455544095,0.205535,97307.0,97299.0,0.15]
[1732455544583,0.102773,97302.0,97299.0,0.15]
[1732455544840,0.102774,97301.0,97299.0,0.15]
[1732455545298,0.102774,97301.0,97298.0,0.09167179]
[1732455545524,0.205539,97305.0,97298.0,0.09167179]
[1732455545741,0.102772,97303.0,97298.0,0.09167179]
[1732455546034,0.02465725,97308.0,97299.0,0.15]
[1732455546035,0.205535,97307.0,97299.0,0.15]
[1732455546286,0.205535,97307.0,97300.0,0.15]
[1732455546520,0.102772,97303.0,97299.0,0.24081409]
[1732455546757,0.102774,97301.0,97299.0,0.24081409]
[1732455546996,0.102772,97302.0,97299.0,0.24081409]
[1732455547719,0.205537,97306.0,97300.0,0.221942]
[1732455548006,0.0766,97315.0,97300.0,0.15]
[1732455548223,0.0766,97315.0,97303.0,0.071939]
[1732455548224,0.102759,97315.0,97303.0,0.071939]
[1732455548459,0.23016725,97319.0,97307.0,0.071936]
[1732455548460,0.02465725,97317.0,97307.0,0.071936]
[1732455548682,0.02465725,97317.0,97304.0,0.00102757]
[1732455548683,0.102767,97307.0,97304.0,0.15]
[1732455548903,0.02465725,97317.0,97307.0,0.071936]
[1732455548904,0.102762,97312.0,97307.0,0.071936]
[1732455549165,0.205518,97315.0,97304.0,0.221938]
[1732455549381,0.102764,97310.0,97308.0,0.00759647]
[1732455549608,0.02465725,97317.0,97309.0,0.00759647]
[1732455549609,0.102761,97314.0,97309.0,0.00759647]
[1732455549873,0.102761,97313.0,97310.0,0.00759647]
[1732455550085,0.102761,97313.0,97304.0,0.24184167]
[1732455550086,0.102761,97313.0,97311.0,0.00759647]
[1732455550300,0.102761,97313.0,97307.0,0.071937]
[1732455550301,0.102761,97313.0,97312.0,0.00759647]
[1732455552229,0.10251858,97313.0,97312.0,0.00759647]
[1732455552652,0.10276,97314.0,97312.0,0.00759647]
[1732455552876,0.102761,97313.0,97312.0,0.00759647]
[1732455553095,0.02465725,97317.0,97308.0,0.09081409]
[1732455553096,0.102765,97309.0,97308.0,0.09081409]
[1732455553549,0.22943652,97309.0,97308.0,0.00760332]
[1732455553808,0.35013652,97309.0,97308.0,0.00760332]
[1732455556239,0.102765,97309.0,97308.0,0.00760332]
[1732455556474,0.14347669,97309.0,97308.0,0.00760332]
[1732455556946,0.102765,97309.0,97308.0,0.00760332]
[1732455557625,0.102765,97309.0,97308.0,0.14408824]
[1732455558768,0.102765,97309.0,97308.0,0.00760332]
[1732455560323,0.102765,97309.0,97308.0,0.00760406]
[1732455560724,0.102765,97309.0,97308.0,0.18958396]
[1732455560950,0.205523,97313.0,97308.0,0.00760406]
[1732455561167,0.102761,97313.0,97312.0,0.13664042]
[1732455561384,0.0009836,97322.0,97312.0,0.00760406]
[1732455561604,0.102754,97320.0,97316.0,0.18217361]
[1732455561816,0.102753,97321.0,97319.0,0.13665667]
[1732455562050,0.7827,97324.0,97320.0,0.071927]
[1732455562279,0.7827,97324.0,97322.0,0.09110139]
[1732455562523,0.7827,97324.0,97317.0,0.18217361]
[1732455562524,0.885449,97324.0,97323.0,0.13665667]
[1732455562738,0.885449,97324.0,97321.0,0.22747488]
[1732455563225,0.7827,97324.0,97316.0,0.34489985]
[1732455563450,0.7827,97324.0,97317.0,0.27296985]
[1732455563660,0.7827,97324.0,97318.0,0.071929]
[1732455563887,0.7827,97324.0,97319.0,0.071928]
[1732455564126,0.2565,97324.0,97323.0,0.071925]
[1732455564343,0.2565,97324.0,97323.0,0.49489485]
[1732455564589,0.2565,97324.0,97323.0,0.221925]
[1732455565282,0.2565,97326.0,97324.0,0.221924]
[1732455565533,0.2565,97326.0,97324.0,0.495228]
[1732455565741,0.2565,97326.0,97325.0,0.071923]
[1732455565953,0.2565,97326.0,97324.0,0.495228]
[1732455566171,0.2565,97326.0,97324.0,0.423304]
[1732455566395,0.102748,97325.0,97324.0,0.273304]
[1732455566615,0.102755,97318.0,97317.0,0.273304]
[1732455566827,0.205494,97326.0,97308.0,0.40477205]
[1732455566828,0.205494,97326.0,97315.0,0.273304]
[1732455567041,0.102758,97316.0,97315.0,0.423304]
[1732455567495,0.02465725,97328.0,97315.0,0.423304]
[1732455567496,0.308238,97327.0,97315.0,0.423304]
[1732455567736,0.308238,97327.0,97326.0,0.1822127]
[1732455567984,0.102747,97326.0,97325.0,0.22776587]
[1732455568825,0.205494,97326.0,97325.0,0.22773271]
[1732455569275,0.308241,97326.0,97325.0,0.22773271]
[1732455569930,0.102754,97320.0,97317.0,0.27327925]
[1732455571263,0.102754,97319.0,97317.0,0.27327925]
[1732455572328,0.205501,97323.0,97317.0,0.27327925]
[1732455573399,0.102753,97320.0,97317.0,0.27327925]
[1732455574260,0.205493,97327.0,97317.0,0.27327925]
[1732455574607,0.102755,97318.0,97317.0,0.27327925]
[1732455574713,0.308241,97326.0,97325.0,0.22774794]
[1732455575006,0.02465725,97337.0,97322.0,0.27327925]
[1732455575254,0.0788,97344.0,97327.0,0.27327925]
[1732455575501,0.0497,97350.0,97334.0,0.071917]
[1732455575502,1.2452392,97345.0,97334.0,0.071917]
[1732455575821,0.102729,97343.0,97334.0,0.071917]
[1732455576015,0.04164329,97344.0,97334.0,0.27327925]
[1732455576272,0.352738,97335.0,97332.0,0.27327925]
[1732455576750,0.25,97335.0,97331.0,0.221919]
[1732455576970,0.25,97335.0,97333.0,0.27327925]
[1732455577222,0.25,97335.0,97333.0,0.34519625]
[1732455577443,0.25,97335.0,97332.0,0.34519725]
[1732455577669,0.25,97335.0,97332.0,0.071918]
[1732455577897,0.25,97335.0,97333.0,0.071917]
[1732455578138,0.25,97335.0,97331.0,0.42300394]
[1732455578396,0.25,97335.0,97331.0,0.49492294]
[1732455578622,0.25,97335.0,97331.0,0.42300394]
[1732455578909,0.10274,97333.0,97331.0,0.42300394]
[1732455579136,0.25,97335.0,97329.0,0.15]
[1732455579366,0.102743,97330.0,97329.0,0.15]
[1732455579584,0.102744,97329.0,97328.0,0.15]
[1732455580057,0.102745,97328.0,97327.0,0.15]
[1732455580323,0.102745,97328.0,97313.0,0.071932]
[1732455580324,0.205492,97327.0,97323.0,0.27300394]
[1732455580551,0.205492,97327.0,97309.0,0.071935]
[1732455580552,0.308238,97327.0,97326.0,0.22748072]
[1732455580797,0.102747,97326.0,97325.0,0.18200279]
[1732455581069,0.102748,97325.0,97324.0,0.18200279]
[1732455581326,0.205492,97327.0,97305.0,0.48240738]
[1732455581327,0.102749,97324.0,97323.0,0.18200279]
[1732455581572,0.102749,97324.0,97323.0,0.18198957]
[1732455582385,0.12740725,97323.0,97322.0,0.18198957]
[1732455582646,0.30656225,97322.0,97319.0,0.13647489]
[1732455582860,0.30656225,97322.0,97317.0,0.09098787]
[1732455582861,0.02665725,97318.0,97317.0,0.09098787]
[1732455583103,0.12741725,97314.0,97313.0,0.09098787]
[1732455583357,0.02665725,97311.0,97309.0,0.09098787]
[1732455583627,0.12742225,97309.0,97308.0,0.001715]
[1732455583868,0.22943652,97309.0,97308.0,0.001715]
[1732455585015,0.27187881,97309.0,97308.0,0.001715]
[1732455593387,0.32197881,97309.0,97308.0,0.001715]
[1732455593625,0.31997881,97309.0,97308.0,0.001715]
[1732455595616,0.40007881,97309.0,97308.0,0.001715]
[1732455595822,0.40207881,97309.0,97308.0,0.001715]
[1732455597588,0.42870235,97309.0,97308.0,0.001715]
[1732455598716,0.68520235,97309.0,97308.0,0.001715]
[1732455599566,2.18520235,97309.0,97308.0,0.001715]
[1732455599780,0.65657881,97309.0,97308.0,0.001715]
[1732455599993,0.65857881,97309.0,97308.0,0.001715]
[1732455600432,0.65657881,97309.0,97308.0,0.001715]
[1732455600661,0.65857881,97309.0,97308.0,0.001715]
[1732455600886,0.68520235,97309.0,97308.0,0.001715]
[1732455601807,0.65857881,97309.0,97308.0,0.001715]
[1732455602036,0.68520235,97309.0,97308.0,0.001715]
[1732455602983,0.65857881,97309.0,97308.0,0.001715]
[1732455607994,0.65657881,97309.0,97308.0,0.001715]
[1732455608243,0.65857881,97309.0,97308.0,0.001715]
[1732455608712,0.65657881,97309.0,97308.0,0.001715]
[1732455608969,0.65857881,97309.0,97308.0,0.001715]
[1732455609698,0.65657881,97309.0,97308.0,0.001715]
[1732455609982,0.65857881,97309.0,97308.0,0.001715]
[1732455610992,0.65657881,97309.0,97308.0,0.001715]
[1732455611234,0.65857881,97309.0,97308.0,0.001715]
[1732455612521,0.65657881,97309.0,97308.0,0.001715]
[1732455613429,0.65857881,97309.0,97308.0,0.001715]
[1732455613651,0.40207881,97309.0,97308.0,0.001715]
[1732455614618,0.27187881,97309.0,97308.0,0.001715]
[1732455616162,0.16986454,97309.0,97308.0,0.001715]
[1732455616398,0.04244229,97309.0,97308.0,0.001715]
[1732455616658,0.2573575,97313.0,97308.0,0.079615]
[1732455617350,0.2573575,97313.0,97309.0,0.071935]
[1732455617607,0.2573575,97313.0,97308.0,0.17055917]
[1732455617856,0.205524,97312.0,97308.0,0.17055917]
[1732455618073,0.205524,97312.0,97308.0,0.079615]
[1732455618307,0.12742225,97309.0,97308.0,0.079615]
[1732455618528,0.12742225,97309.0,97308.0,0.001715]
[1732455620092,0.22943652,97309.0,97308.0,0.001715]
[1732455622415,0.22943652,97309.0,97308.0,0.0092973]
[1732455622848,0.22943652,97309.0,97308.0,0.001715]
[1732455623072,0.22943652,97309.0,97308.0,0.00930057]
[1732455623741,0.22943652,97309.0,97308.0,0.001715]
[1732455623996,0.25034843,97309.0,97308.0,0.001715]
[1732455625566,0.22569118,97309.0,97308.0,0.001715]
[1732455625788,0.25034843,97309.0,97308.0,0.001715]
[1732455627122,0.20477927,97309.0,97308.0,0.001715]
[1732455627340,0.102765,97309.0,97308.0,0.001715]
[1732455628237,0.102765,97309.0,97308.0,0.22916133]
[1732455628668,0.102765,97309.0,97308.0,0.001715]
[1732455629106,0.102763,97311.0,97308.0,0.001715]
[1732455629551,0.102764,97310.0,97308.0,0.001715]
[1732455629966,0.102765,97309.0,97308.0,0.001715]
[1732455630369,0.0008575,97313.0,97308.0,0.001715]
[1732455630370,0.1036195,97313.0,97308.0,0.07365]
[1732455630616,0.0008575,97313.0,97312.0,0.22736534]
[1732455630831,0.0008575,97313.0,97308.0,0.001715]
[1732455630832,0.0008575,97313.0,97311.0,0.071933]
[1732455631048,0.0008575,97313.0,97308.0,0.001715]
[1732455631049,0.0008575,97313.0,97312.0,0.07296051]
[1732455632325,0.0008575,97313.0,97312.0,0.071933]
[1732455633479,0.0008575,97313.0,97312.0,0.07296046]
[1732455633692,0.0008575,97313.0,97312.0,0.20196046]
[1732455634371,0.0008575,97313.0,97312.0,0.47460354]
[1732455634605,0.0008575,97313.0,97312.0,0.200933]
[1732455634835,0.0008575,97313.0,97312.0,0.37496039]
[1732455635061,0.0008575,97313.0,97312.0,0.373933]
[1732455635280,0.0008575,97313.0,97312.0,0.77650755]
[1732455635514,0.0008575,97313.0,97312.0,0.77623879]
[1732455635731,0.0008575,97313.0,97312.0,0.373933]
[1732455637250,0.0008575,97313.0,97312.0,0.350933]
[1732455640152,0.0008575,97313.0,97312.0,0.57766282]
[1732455640373,0.0008575,97313.0,97312.0,0.350933]
[1732455640582,0.0008575,97313.0,97312.0,0.57764683]
[1732455641040,0.0008575,97313.0,97312.0,0.350933]
[1732455641264,0.0008575,97313.0,97312.0,0.5776278]
[1732455641704,0.0008575,97313.0,97312.0,0.350933]
[1732455641915,0.0008575,97313.0,97312.0,0.373933]
[1732455642353,0.0008575,97313.0,97312.0,0.64609686]
[1732455642569,0.0008575,97313.0,97312.0,0.368933]
[1732455644627,0.0008575,97313.0,97312.0,0.64629002]
[1732455645759,0.0008575,97313.0,97312.0,0.64800622]
[1732455646129,0.0008575,97313.0,97312.0,0.91970403]
[1732455646313,0.0008575,97313.0,97312.0,0.64800622]
[1732455646766,0.0008575,97320.0,97319.0,0.370128]
[1732455646965,0.0008575,97320.0,97319.0,0.47214227]
[1732455647863,0.0008575,97320.0,97319.0,0.74375529]
[1732455648078,0.0008575,97320.0,97319.0,0.47214227]
[1732455650903,0.0008575,97320.0,97319.0,0.46218227]
[1732455652868,0.0008575,97320.0,97319.0,0.40021427]
[1732455653082,0.0008575,97320.0,97319.0,0.301728]
[1732455653302,0.0008575,97320.0,97319.0,0.52800823]
[1732455653508,0.0008575,97320.0,97319.0,0.301728]
[1732455653921,0.0008575,97320.0,97319.0,0.221928]
[1732455654130,0.0008575,97320.0,97319.0,0.40301605]
[1732455654335,0.0008575,97320.0,97319.0,0.244928]
[1732455655586,0.0008575,97320.0,97319.0,0.42605021]
[1732455655803,0.0008575,97320.0,97319.0,0.244928]
[1732455656217,0.0008575,97320.0,97319.0,0.38077972]
[1732455656425,0.0008575,97320.0,97319.0,0.244928]
[1732455656835,0.0008575,97320.0,97319.0,0.42605021]
[1732455657045,0.0008575,97320.0,97319.0,0.094928]
[1732455657261,0.0008575,97320.0,97319.0,0.24595536]
[1732455657464,0.0008575,97320.0,97319.0,0.244928]
[1732455657896,0.0008575,97320.0,97319.0,0.173]
[1732455658104,0.0008575,97320.0,97319.0,0.15]
[1732455658317,0.102754,97319.0,97318.0,0.28590706]
[1732455658539,0.0008575,97320.0,97317.0,0.28590706]
[1732455658825,0.102755,97318.0,97317.0,0.09063721]
[1732455659035,0.102756,97317.0,97316.0,0.09063721]
[1732455659244,0.0769575,97320.0,97314.0,0.13590706]
[1732455659245,0.102755,97319.0,97315.0,0.09063721]
[1732455659447,0.1797115,97320.0,97314.0,0.16256821]
[1732455659695,0.1797115,97320.0,97316.0,0.09063721]
[1732455659900,0.1797115,97320.0,97317.0,0.09063721]
[1732455660110,0.0769575,97320.0,97317.0,0.09063721]
[1732455660320,0.102756,97318.0,97316.0,0.09063721]
[1732455660536,0.0769575,97320.0,97317.0,0.09063721]
[1732455660537,0.1797115,97320.0,97317.0,0.09063721]
[1732455660959,0.1797115,97320.0,97319.0,0.09063721]
[1732455661596,0.102754,97319.0,97318.0,0.09071168]
[1732455661815,0.102754,97319.0,97317.0,0.14514972]
[1732455662234,0.102754,97319.0,97317.0,0.28105678]
[1732455662857,0.102755,97318.0,97317.0,0.28105678]
[1732455663084,0.102755,97318.0,97317.0,0.14514972]
[1732455663747,0.102757,97317.0,97316.0,0.13590706]
[1732455663981,0.102757,97317.0,97316.0,0.28608741]
[1732455664194,0.102757,97317.0,97316.0,0.15]
[1732455664630,0.102755,97319.0,97317.0,0.15]
[1732455664837,0.0769575,97320.0,97318.0,0.09072981]
[1732455665074,0.1797115,97320.0,97318.0,0.09072981]
[1732455665287,0.1797115,97320.0,97319.0,0.09072981]
[1732455665917,0.1797115,97320.0,97312.0,0.30046155]
[1732455665918,0.0008575,97320.0,97318.0,0.20801641]
[1732455666131,0.0008575,97320.0,97319.0,0.18144988]
[1732455666392,0.0008575,97320.0,97319.0,0.18143799]
[1732455666598,0.0008575,97320.0,97319.0,0.25336599]
[1732455667019,0.0008575,97320.0,97318.0,0.29874035]
[1732455667255,0.0008575,97320.0,97319.0,0.25443646]
[1732455667476,0.0008575,97320.0,97319.0,0.071928]
[1732455667699,0.0008575,97320.0,97319.0,0.07295543]
[1732455667911,0.0008575,97320.0,97319.0,0.00102743]
[1732455668131,0.1036105,97320.0,97319.0,0.00102743]
[1732455668341,0.1036105,97320.0,97319.0,0.18166878]
[1732455668551,0.1036105,97320.0,97318.0,0.00102745]
[1732455668960,0.0008575,97320.0,97318.0,0.00102745]
[1732455669172,0.0008575,97320.0,97318.0,0.2278398]
[1732455670320,0.1036115,97320.0,97318.0,0.18283527]
[1732455670496,0.0008575,97320.0,97319.0,0.22681235]
[1732455670714,0.0008575,97320.0,97316.0,0.15]
[1732455670914,0.0008575,97320.0,97317.0,0.00102742]
[1732455671570,0.0008575,97320.0,97319.0,0.22733678]
[1732455671775,0.0008575,97320.0,97316.0,0.07193]
[1732455671983,0.0008575,97320.0,97317.0,0.00102745]
[1732455672191,0.0008575,97320.0,97319.0,0.071928]
[1732455672347,0.0008575,97320.0,97319.0,0.09595543]